{"text_format":"1","workbook":"xlsx","n_sheets":3,"sheets":["Conseil d'utilisation","Simulateur","Paramètres"],"not_rendered":{"charts":1,"images":7,"macros":1,"external_links":0,"defined_names":17,"comments":1,"pivot_tables":0},"unopened":[],"bounds":{"document_bytes":16777216,"sheet_cells":100000,"rows_first":2000,"rows_last":500,"rows_between":2000,"halvings":0,"cell_chars":16384,"cell_head_chars":4096},"cells_cut":0,"cells_raw":0,"read":"whole","date_system":"1900"}

{"sheet":"Conseil d'utilisation","index":0,"n_rows":64,"n_cols":14,"rows_kept":64,"cut":false,"hidden":false,"merged":[[71,2,71,9]]}
[]
[]
[]
[]
[]
[]
[]
[]
[]
[null,null,"Comment ça marche ?"]
[]
[null,null,"Vous avez des cases de différentes couleurs :"]
[]
[null,null,"Intitulé des questions",null,null,"Blanches "]
[]
[null,null,"Données à saisir ",null,null,"Grises "]
[]
[]
[]
[null,null,"Données calculées automatiquement suite à la saisie de l'utilisateur",null,null,null,null,"Bleues/Grises"]
[]
[]
[]
[]
[null,null,"Ce simulateur est composé de 17 questions"]
[]
[null,null,"Vous avez :"]
[null,null,"- Dans toute la partie gauche, les questions posées et données à saisir"]
[null,null,"- Dans la partie droite, les montants de déduction alimentées en fonction de vos réponses"]
[]
[]
[null,null,"Le simulateur est alimenté dès lors que vous saisissez l'effectif de votre entreprise."]
[null,null,"Cette donnée est le moteur du simulateur."]
[]
[null,null,"Tout au long de cette simulation, vous aurez une aide dans les commentaires identifiable par une encoche rouge"]
[]
[]
[null,null,"Aux questions II et III, des cases ont été cochés par défaut, si celles-ci ne correspondent pas à votre situation, merci de corriger",null,null,null,null,null,null,null,null,null,null,"Un message d'erreur peut apparaître dans le cas où 2 cases ont été cochées."]
[null,null,"(Dans cet exemple, il ne s'agit que de la question III)",null,null,null,null,null,null,null,null,null,null,"Pour un calcul correct du montant de votre contribution, ne cochez qu'une seule case."]
[]
[]
[]
[]
[]
[]
[]
[]
[]
[]
[]
[]
[]
[]
[null,null,"Quelle différence avec le simulateur en ligne ?"]
[]
[null,null,"La différence avec le simulateur en ligne est l'accès : "]
[]
[null,null,"- aux calculs du simulateur (en cliquant sur une des cellules bleues/grises)"]
[]
[]
[]
[]
[]
[null,null,"- ainsi qu'aux paramètres du simulateur"]

{"sheet":"Simulateur","index":1,"n_rows":113,"n_cols":15,"rows_kept":113,"cut":false,"hidden":false,"merged":[[104,9,106,9],[40,5,41,9],[89,5,89,9],[91,5,91,6],[92,5,92,6],[66,5,66,6],[68,5,68,6],[46,5,46,6],[59,5,59,6],[85,5,85,9],[98,5,99,9],[78,5,78,6],[81,5,81,6],[77,5,77,6],[80,5,80,6],[75,5,75,6],[74,5,74,6],[60,5,60,6],[62,5,62,6],[63,5,63,6],[65,5,65,6],[3,2,4,9],[14,5,14,9],[69,5,69,6],[71,5,71,6],[72,5,72,6],[20,5,20,6],[25,5,25,6],[33,5,34,9],[36,5,36,6],[43,5,43,6]]}
[null,null,null,null,null,null,null,null,null,null,null,null,null,null,2017]
[null,null,null,null,null,null,null,null,null,null,null,null,null,null,2018]
[null,null,null,null,null,null,null,null,null,null,null,null,null,null,2019]
[null,null,"Dans un souci de maintien et suivi des mises à jour du simulateur, il est recommandé de s’adresser exclusivement à l’Agefiph et pour toute question sur ce fichier merci de contacter reformeoeth@agefiph.asso.fr",null,null,null,null,null,null,null,null,null,null,null,2020]
[]
[]
[]
[]
[null,null,null,null,null,null,null,"Année d'exercice :",null,2020]
[null,null,null,null,null,"Effectif Moyen Annuel de l'entreprise",null,null,null,"Objectif d'emploi de travailleurs handicapés"]
[null,null,null,null,null,null,{"$f":"IF(F11<20,\"L'effectif à saisir doit être au moins égal à 20\",\"\")","v":"L'effectif à saisir doit être au moins égal à 20"},null,null,{"$f":"IF(F11<20,0,ROUNDDOWN(F11*Objemploi,0))","v":0}]
[]
[]
[]
[null,null,null,null,null,"I . Calcul de l'effectif moyen annuel de bénéficiaire(s) de l'obligation d'emploi "]
[]
[null,null,null,null,null,null,null,null,null,"Nombre BOETH total employés"]
[null,null,null,null,null,null,null,null,null,{"$f":"F23+(G23*Survalo)+F28+(G28*Survalo)","v":0}]
[]
[]
[null,null,null,null,null,"Effectifs de BOETH dans l'entreprise",null,null,null,"Montant de la déduction lié à l'embauche de bénéficiaire(s) âgé(s) de MOINS de 50 ans"]
[null,null,null,null,null,"=>âgés de moins de 50 ans","=>âgés de 50 ans et plus",null,null,{"$f":"F23*Coefficient*SHB","v":{"$error":"#VALUE!"}}]
[null,null,null,null,null,null,null,null,null,"Montant de la déduction lié à l'embauche de bénéficiaire(s) âgé(s) de 50 ans et PLUS"]
[null,null,null,null,null,null,null,null,null,{"$f":"G23*Survalo*Coefficient*SHB","v":{"$error":"#VALUE!"}}]
[]
[null,null,null,null,null,"Bénéficiaires de l'OETH intérimaires ou mis à disposition dans l'entreprise",null,null,null,"Montant de la déduction lié à l'embauche de bénéficiaire(s) externe(s) âgé(s) de MOINS de 50 ans"]
[null,null,null,null,null,"=>âgés de moins de 50 ans","=>âgés de 50 ans et plus",null,null,{"$f":"F28*Coefficient*SHB","v":{"$error":"#VALUE!"}}]
[null,null,null,null,null,null,null,null,null,"Montant de la déduction lié à l'embauche de bénéficiaire(s) externe(s) âgé(s) de 50 ans et PLUS"]
[null,null,null,null,null,null,null,null,null,{"$f":"G28*Survalo*Coefficient*SHB","v":{"$error":"#VALUE!"}}]
[]
[null,null,null,null,null,null,null,null,null,"Taux d'emploi"]
[null,null,null,null,null,null,null,null,null,{"$f":"Txemploi","v":0},"%"]
[]
[null,null,null,null,null,"II . Mise en place d'un accord agrée d'entreprise, de groupe ou de branche sur l'emploi des personnes handicapées"]
[]
[]
[null,null,null,null,null,"Votre entreprise est-elle concernée par un accord agréé ?",null,null,null,"Accord"]
[null,null,null,null,null,null,null,null,null,{"$f":"IF(AccordOui=TRUE,\"Oui\",IF(AccordNon=TRUE,\"Non\",IF(AND(AccordNon=FALSE,AccordOui=FALSE),\"Vous devez coché une case\",\"\")))","v":"Non"}]
[null,null,null,null,null,{"$f":"IF(AND(AccordNon=TRUE,AccordOui=TRUE),\"Une seule case doit être cochée\",\"\")","v":""}]
[]
[null,null,null,null,null,"III . Détermination du coefficient de l'entreprise "]
[]
[]
[null,null,null,null,null,"Avez-vous accueilli des BOETH au cours des 4 desnières années (depuis 2017)",null,null,null,"Nombre de BOETH manquant"]
[null,null,null,null,null,null,null,null,null,{"$f":"J11-J18","v":0}]
[null,null,null,null,null,{"$f":"IF(AND(BOETH4ansNon=TRUE,BOETH4ansOui=TRUE),\"Une seule case doit être cochée\",\"\")","v":""}]
[null,null,null,null,null,"Votre entreprise a-t-elle eu recours à des montant de sous-traitance avec le STPA au cours des 4 desnières années (depuis 2017) pour un montant minimum de 6090 €",null,null,null,"Coefficient de votre entreprise "]
[null,null,null,null,null,null,null,null,null,{"$f":"Coefficient","v":" non assujetti"}]
[null,null,null,null,null,{"$f":"IF(AND(Sous_traitance4ansOui=TRUE,Sous_traitance4ansNon=FALSE),\"En cochant cette case vous certifiez avoir cumulé depuis 2017, des contrats d'un montant au moins égal à 6090 €\",IF(AND(Sous_traitance4ansNon=TRUE,Sous_traitance4ansOui=TRUE),\"Une seule case doit être cochée\",\"\"))","v":""}]
[]
[]
[null,null,null,null,null,"IV. Contribution brute avant déductions"]
[null,null,null,null,null,null,null,null,null,"Ce montant est à déclarer en DSN"]
[null,null,null,null,null,null,null,null,null,{"$f":"J45*Coefficient*SHB","v":{"$error":"#VALUE!"}}]
[]
[]
[null,null,null,null,null,"V. Déductions"]
[]
[]
[null,null,null,null,null,"Effectif moyen annuel de presonnes relevant d'un ECAP",null,null,null,"Montant de la déduction lié aux ECAP"]
[null,null,null,null,null,0,null,null,null,{"$f":"F61*17*SHB","v":0}]
[]
[null,null,null,null,null,"Montant de sous traitance Esat/EA/TIH/EPS non plafonné\n(30% du coût de la main d'oeuvre)",null,null,null,"Montant de la déduction lié à la sous-traitance"]
[null,null,null,null,null,0,null,null,null,{"$f":"IF(AND(Txemploi<3,F64>J54*SsTrait_Plaf_inf3),J54*SsTrait_Plaf_inf3,IF(AND(Txemploi>=3,F64>J54*Sstrait_Plaf≥3),J54*Sstrait_Plaf≥3,F64))","v":{"$error":"#VALUE!"}}]
[]
[null,null,null,null,null,"Dépenses liées à la réalisation de diagnostics et de travaux d'accessibilité pour les bénéficiaires de l'obligation d'emploi.\n",null,null,null,"Montant de la déduction lié aux dépenses directes"]
[null,null,null,null,null,0,null,null,null,{"$f":"IF(AND(AccordOui=TRUE,AccordNon=FALSE),0,IF(AND(AccordOui=FALSE,AccordNon=TRUE),IF((F67+F70+F73+F76+F79+F82)>J54*DepDir_Plaf,J54*DepDir_Plaf,F67+F70+F73+F76+F79+F82),F67+F70+F73+F76+F79+F82))","v":{"$error":"#VALUE!"}}]
[]
[null,null,null,null,null,"Dépenses liées à la mise en œuvre de moyens humains, techniques ou organisationnels destinées à compenser le handicap, à la formation des salariés bénéficiaires de l'obligation d'emploi pour permettre leur maintien dans l'emploi et leur reconversion professionnelle."]
[null,null,null,null,null,0]
[]
[null,null,null,null,null,"Dépenses liées aux prestations d'accompagnement des personnes handicapées bénéficiaires de l'obligation d'emploi et à la formation des salariés de l'entreprise au handicap."]
[null,null,null,null,null,0]
[]
[null,null,null,null,null,"Dépenses déductibles liées à la participation à des événements"]
[null,null,null,null,null,0]
[]
[null,null,null,null,null,"Dépenses déductibles liées aux partenariats avec des associations"]
[null,null,null,null,null,0]
[]
[null,null,null,null,null,"Dépenses déductibles liées aux actions concourant à la professionnalisation et aux achats auprès des EA, ESAT, TIH\n"]
[null,null,null,null,null,0]
[]
[]
[]
[null,null,null,null,null,"IV. Contribution nette après déductions"]
[null,null,null,null,null,null,null,null,null,"Ce montant est à déclarer en DSN"]
[null,null,null,null,null,null,null,null,null,{"$f":"IF(MontantBrut_AvDed-J61-J64-J67<0,0,MontantBrut_AvDed-J61-J64-J67)","v":{"$error":"#VALUE!"}}]
[]
[null,null,null,null,null,"V. Contribution nette après écrêtement"]
[null,null,null,null,null,"MESURES TRANSITOIRES"]
[null,null,null,null,null,"Montant de la contribution de l’ensemble de l'entreprise de l'année N-1",null,null,null,"Montant de contribution nette après ecrêtement \nsoit le MONTANT A DECLARER EN DSN"]
[null,null,null,null,null,0,null,null,null,{"$f":"IF(MontantNet_AprDed<=Contribution_an_passe,MontantNet_AprDed,ROUND((IF(AND(MontantNet_AprDed-Contribution_an_passe>10000,MontantNet_AprDed-Contribution_an_passe<=100000),Contribution_an_passe+((MontantNet_AprDed-Contribution_an_passe)-((10000*0.3)+((MontantNet_AprDed-Contribution_an_passe)-10000)*0.5)),IF(MontantNet_AprDed-Contribution_an_passe>100000,Contribution_an_passe+((MontantNet_AprDed-Contribution_an_passe)-((10000*0.3)+((100000-10000)*0.5)+((MontantNet_AprDed-Contribution_an_passe)-100000)*0.7)),Contribution_an_passe+((MontantNet_AprDed-Contribution_an_passe)-(MontantNet_AprDed-Contribution_an_passe)*0.3)))),2))","v":{"$error":"#VALUE!"}}]
[]
[null,null,null,null,null,null,null,null,null,"Montant du budget de l'accord (pour les entreprises sous accord uniquement)"]
[null,null,null,null,null,null,null,null,null,{"$f":"IF(AccordOui=TRUE,F67+F70+F73+F76+F79+F82,\"\")","v":""}]
[]
[]
[null,null,null,null,null,"VI. Evolution prévisionnelle de la contribution à comportement inchangé"]
[]
[]
[]
[]
[]
[null,null,null,null,null,null,null,null,null,"Montant de contribution nette après ecrêtement pour la période de mise en œuvre des modalités transitoires"]
[]
[]
[null,null,null,null,null,null,null,null,2020,{"$f":"J93","v":{"$error":"#VALUE!"}},2020]
[null,null,null,null,null,null,null,null,2021,{"$f":"J93+((MontantNet_AprDed-J93)*0.2)","v":{"$error":"#VALUE!"}}]
[null,null,null,null,null,null,null,null,2022,{"$f":"J109+((MontantNet_AprDed-J109)*0.25)","v":{"$error":"#VALUE!"}}]
[null,null,null,null,null,null,null,null,2023,{"$f":"J110+((MontantNet_AprDed-J110)*0.34)","v":{"$error":"#VALUE!"}}]
[null,null,null,null,null,null,null,null,2024,{"$f":"J111+((MontantNet_AprDed-J111)*0.5)","v":{"$error":"#VALUE!"}}]
[null,null,null,null,null,null,null,null,2025,{"$f":"J112+((MontantNet_AprDed-J112)*1)","v":{"$error":"#VALUE!"}}]

{"sheet":"Paramètres","index":2,"n_rows":47,"n_cols":6,"rows_kept":47,"cut":false,"hidden":false,"merged":[[8,1,8,12],[46,4,46,6],[28,2,28,6],[25,2,25,6],[37,2,37,3],[38,2,38,11],[31,2,31,11],[41,2,41,6],[45,2,45,6],[12,5,12,6],[18,5,18,6],[10,2,10,3],[17,2,17,3],[32,5,33,5],[26,2,26,6],[29,2,29,6]]}
[]
[]
[]
[]
[]
[]
[]
[]
[null,"Paramètres du simulateur"]
[]
[null,null,"SMIC "]
[null,null,2020,10.15,null,"Formule liée à J8 (SHB)"]
[null,null,2021,0,null,{"$f":"VLOOKUP(Simulateur!J9,Paramètres!$C$12:$D$14,2,0)","v":10.15}]
[null,null,2022,0]
[null,null,2023,0]
[null,null,2024,0]
[]
[null,null,"Objectif d'emploi ",null,null,"Formule liée à J10 (ObjEmploi)"]
[null,null,2020,0.06,null,{"$f":"VLOOKUP(Simulateur!J9,Paramètres!$C$19:$D$21,2,0)","v":0.06}]
[null,null,2021,0.06]
[null,null,2022,0.06]
[null,null,2023,0.06]
[null,null,2024,0.06]
[]
[]
[null,null,"Survalorisation des bénéficiaires âgés de 50 ans et plus (Survalo)"]
[null,null,1.5]
[]
[null,null,"Taux d'emploi = nombre de bénéficiaire employés / effectif entreprise (TxEmploi)"]
[null,null,{"$f":"ROUND(IF(ISERROR((Simulateur!J18/Simulateur!F11)*100),0,(Simulateur!J18/Simulateur!F11)*100),2)","v":0}]
[]
[null,null,"Détermination du coefficient de l'entreprise (Coefficient)"]
[null,null,"Accord",false,true,"VRAI si coché \nFAUX si non coché"]
[null,null,"BOETH4ans",true,false]
[null,null,"Sous-traitance4ans",false,true]
[null,null,"Coche","OUI","NON"]
[]
[null,null,"Formule liée à toutes les déductions"]
[null,null,{"$f":"IF(AND(Simulateur!J18=0,AccordNon=TRUE,BOETH4ansNon=TRUE,Sous_traitance4ansNon=TRUE),1500,IF(AND(Simulateur!F11>=250,Simulateur!F11<=749),\" 500\",IF(Simulateur!F11>=750,\" 600\",IF(Simulateur!F11<20,\" non assujetti\",\" 400\"))))","v":" non assujetti"}]
[]
[]
[null,null,"Détermination du plafond de sous-traitance en fonction du taux d'emploi (SsTrait_Plaf_inf3 et Sstrait_Plaf≥3)"]
[null,null,"Taux emploi ≥ 3",0.75]
[null,null,"Taux emploi < 3",0.5]
[]
[null,null,"Détermination du plafond des dépenses directes"]
[null,null,"Plafond",0.1,"du montant de la contribution"]